[Event "Titled Tuesday Blitz August 1 Early 2023"]
[White "Pastar, Slaven"]
[Black "Rustemov, Alexander"]
[WhiteFideId "14402718"]
[BlackFideId "4119002"]
[WhiteElo "2554"]
[BlackElo "2843"]
[Result "1/2-1/2"]
[Round "2"]
[TimeControl "180+1"]
[Date "2023.08.01"]
[WhiteClock "0:00:05"]
[BlackClock "0:00:10"]
[Board "42"]

1. b3 {[%clk 0:03:00]}  d5 {[%clk 0:02:59]} 2. Bb2 {[%clk 0:03:01]}  Nf6 {[%clk 0:03:00]} 3. e3 {[%clk 0:03:01]}  Bf5 {[%clk 0:03:00]} 4. Nf3 {[%clk 0:03:00]}  e6 {[%clk 0:03:00]} 5. Bd3 {[%clk 0:03:01]}  Bg6 {[%clk 0:02:56]} 6. Bxg6 {[%clk 0:03:00]}  hxg6 {[%clk 0:02:56]} 7. d3 {[%clk 0:02:59]}  Bd6 {[%clk 0:02:49]} 8. Nbd2 {[%clk 0:02:59]}  Nbd7 {[%clk 0:02:48]} 9. Qe2 {[%clk 0:02:58]}  Qe7 {[%clk 0:02:47]} 10. e4 {[%clk 0:02:57]}  Ba3 {[%clk 0:02:46]} 11. Bxa3 {[%clk 0:02:39]}  Qxa3 {[%clk 0:02:47]} 12. O-O {[%clk 0:02:28]}  a5 {[%clk 0:02:34]} 13. c4 {[%clk 0:02:27]}  dxe4 {[%clk 0:02:31]} 14. Nxe4 {[%clk 0:02:20]}  O-O {[%clk 0:02:21]} 15. Nfg5 {[%clk 0:02:11]}  a4 {[%clk 0:02:11]} 16. Rab1 {[%clk 0:02:10]}  axb3 {[%clk 0:02:08]} 17. axb3 {[%clk 0:02:07]}  Rfd8 {[%clk 0:01:55]} 18. Qf3 {[%clk 0:02:02]}  Qa5 {[%clk 0:01:40]} 19. b4 {[%clk 0:01:55]}  Qf5 {[%clk 0:01:38]} 20. Qe2 {[%clk 0:01:29]}  Nxe4 {[%clk 0:01:33]} 21. Nxe4 {[%clk 0:01:27]}  Ne5 {[%clk 0:01:27]} 22. Rfd1 {[%clk 0:01:26]}  Ra3 {[%clk 0:01:26]} 23. Ng3 {[%clk 0:01:14]}  Qf4 {[%clk 0:01:22]} 24. d4 {[%clk 0:01:07]}  Nc6 {[%clk 0:01:15]} 25. d5 {[%clk 0:00:58]}  exd5 {[%clk 0:01:00]} 26. Rxd5 {[%clk 0:00:53]}  Rda8 {[%clk 0:00:49]} 27. b5 {[%clk 0:00:43]}  Ne5 {[%clk 0:00:40]} 28. Qxe5 {[%clk 0:00:18]}  Qxe5 {[%clk 0:00:20]} 29. Rxe5 {[%clk 0:00:17]}  Rc3 {[%clk 0:00:21]} 30. Rc5 {[%clk 0:00:16]}  Ra2 {[%clk 0:00:16]} 31. Rxc7 {[%clk 0:00:14]}  Rcc2 {[%clk 0:00:16]} 32. Rf1 {[%clk 0:00:15]}  b6 {[%clk 0:00:17]} 33. Rc6 {[%clk 0:00:14]}  Rab2 {[%clk 0:00:16]} 34. Rxb6 {[%clk 0:00:15]}  Rxc4 {[%clk 0:00:16]} 35. Rb7 {[%clk 0:00:15]}  Rcb4 {[%clk 0:00:16]} 36. Re1 {[%clk 0:00:12]}  f6 {[%clk 0:00:07]} 37. h3 {[%clk 0:00:08]}  Rxb5 {[%clk 0:00:06]} 38. Re8+ {[%clk 0:00:07]}  Kh7 {[%clk 0:00:06]} 39. Rxb5 {[%clk 0:00:07]}  Rxb5 {[%clk 0:00:06]} 40. Re3 {[%clk 0:00:08]}  Rb1+ {[%clk 0:00:06]} 41. Kh2 {[%clk 0:00:08]}  Rb2 {[%clk 0:00:07]} 42. Rf3 {[%clk 0:00:08]}  Rb7 {[%clk 0:00:07]} 43. Ne4 {[%clk 0:00:08]}  g5 {[%clk 0:00:07]} 44. Ng3 {[%clk 0:00:08]}  Kg6 {[%clk 0:00:07]} 45. Rc3 {[%clk 0:00:08]}  Rb5 {[%clk 0:00:07]} 46. Rc4 {[%clk 0:00:08]}  Ra5 {[%clk 0:00:06]} 47. f3 {[%clk 0:00:08]}  Rb5 {[%clk 0:00:07]} 48. Ne4 {[%clk 0:00:09]}  Ra5 {[%clk 0:00:07]} 49. Kg3 {[%clk 0:00:09]}  Ra6 {[%clk 0:00:07]} 50. Rc5 {[%clk 0:00:09]}  Ra7 {[%clk 0:00:07]} 51. Rb5 {[%clk 0:00:09]}  Ra6 {[%clk 0:00:07]} 52. Nc3 {[%clk 0:00:10]}  Ra7 {[%clk 0:00:08]} 53. Nd5 {[%clk 0:00:10]}  Ra6 {[%clk 0:00:08]} 54. Rb6 {[%clk 0:00:10]}  Ra7 {[%clk 0:00:08]} 55. Rc6 {[%clk 0:00:10]}  Rd7 {[%clk 0:00:08]} 56. Ne3 {[%clk 0:00:08]}  Ra7 {[%clk 0:00:09]} 57. Kf2 {[%clk 0:00:07]}  Rb7 {[%clk 0:00:09]} 58. g4 {[%clk 0:00:06]}  Ra7 {[%clk 0:00:09]} 59. Nf5 {[%clk 0:00:07]}  Rb7 {[%clk 0:00:09]} 60. Kg3 {[%clk 0:00:06]}  Ra7 {[%clk 0:00:09]} 61. Re6 {[%clk 0:00:07]}  Ra8 {[%clk 0:00:06]} 62. Re7 {[%clk 0:00:07]}  Rg8 {[%clk 0:00:06]} 63. h4 {[%clk 0:00:07]}  gxh4+ {[%clk 0:00:06]} 64. Nxh4+ {[%clk 0:00:07]}  Kh7 {[%clk 0:00:06]} 65. Nf5 {[%clk 0:00:07]}  Kg6 {[%clk 0:00:07]} 66. Rxg7+ {[%clk 0:00:07]}  Rxg7 {[%clk 0:00:06]} 67. Nxg7 {[%clk 0:00:07]}  Kxg7 {[%clk 0:00:07]} 68. Kf4 {[%clk 0:00:07]}  Kg6 {[%clk 0:00:07]} 69. Ke4 {[%clk 0:00:02]}  f5+ {[%clk 0:00:07]} 70. Kf4 {[%clk 0:00:02]}  Kf6 {[%clk 0:00:08]} 71. g5+ {[%clk 0:00:02]}  Kg6 {[%clk 0:00:08]} 72. Kg3 {[%clk 0:00:02]}  Kxg5 {[%clk 0:00:09]} 73. f4+ {[%clk 0:00:02]}  Kh5 {[%clk 0:00:09]} 74. Kh3 {[%clk 0:00:03]}  Kg6 {[%clk 0:00:09]} 75. Kg3 {[%clk 0:00:03]}  Kh5 {[%clk 0:00:09]} 76. Kh3 {[%clk 0:00:04]}  Kg6 {[%clk 0:00:09]} 77. Kg3 {[%clk 0:00:05]}  Kh5 {[%clk 0:00:10]} 1/2-1/2


[Site "https://www.chess.com"]

[Event "Titled Tuesday Blitz August 1 Early 2023"]
[White "Mitrabha, Guha"]
[Black "Porter, Ryan W"]
[WhiteFideId "5057000"]
[BlackFideId "2011239"]
[WhiteElo "2842"]
[BlackElo "2554"]
[Result "1-0"]
[Round "2"]
[TimeControl "180+1"]
[Date "2023.08.01"]
[WhiteClock "0:01:45"]
[BlackClock "0:00:16"]
[Board "43"]

1. Nf3 {[%clk 0:03:00]}  d5 {[%clk 0:02:59]} 2. c4 {[%clk 0:03:00]}  c6 {[%clk 0:02:59]} 3. e3 {[%clk 0:02:59]}  Nf6 {[%clk 0:02:59]} 4. Nc3 {[%clk 0:02:59]}  a6 {[%clk 0:02:59]} 5. b3 {[%clk 0:02:57]}  Bf5 {[%clk 0:02:56]} 6. Bb2 {[%clk 0:02:56]}  e6 {[%clk 0:02:56]} 7. Be2 {[%clk 0:02:56]}  h6 {[%clk 0:02:56]} 8. O-O {[%clk 0:02:56]}  Nbd7 {[%clk 0:02:56]} 9. d4 {[%clk 0:02:56]}  Bd6 {[%clk 0:02:54]} 10. Bd3 {[%clk 0:02:56]}  O-O {[%clk 0:02:51]} 11. Bxf5 {[%clk 0:02:55]}  exf5 {[%clk 0:02:51]} 12. cxd5 {[%clk 0:02:56]}  cxd5 {[%clk 0:02:49]} 13. Rc1 {[%clk 0:02:56]}  Rc8 {[%clk 0:02:48]} 14. Qd3 {[%clk 0:02:51]}  g6 {[%clk 0:02:46]} 15. Rc2 {[%clk 0:02:49]}  Qe7 {[%clk 0:02:41]} 16. Rfc1 {[%clk 0:02:48]}  Nb6 {[%clk 0:02:34]} 17. Ne2 {[%clk 0:02:40]}  Qd7 {[%clk 0:02:26]} 18. Ne5 {[%clk 0:02:35]}  Qe6 {[%clk 0:02:20]} 19. Nf4 {[%clk 0:02:34]}  Qe7 {[%clk 0:02:15]} 20. Nexg6 {[%clk 0:02:29]}  fxg6 {[%clk 0:02:09]} 21. Nxg6 {[%clk 0:02:30]}  Qe4 {[%clk 0:01:55]} 22. Qxe4 {[%clk 0:02:21]}  fxe4 {[%clk 0:01:54]} 23. Nxf8 {[%clk 0:02:21]}  Rxf8 {[%clk 0:01:55]} 24. a4 {[%clk 0:02:18]}  Kf7 {[%clk 0:01:26]} 25. Bc3 {[%clk 0:02:16]}  Ke6 {[%clk 0:01:22]} 26. Ba5 {[%clk 0:02:16]}  Nbd7 {[%clk 0:01:20]} 27. Rc8 {[%clk 0:02:15]}  Rxc8 {[%clk 0:00:57]} 28. Rxc8 {[%clk 0:02:16]}  b6 {[%clk 0:00:55]} 29. Bd2 {[%clk 0:02:07]}  a5 {[%clk 0:00:54]} 30. h3 {[%clk 0:02:03]}  h5 {[%clk 0:00:53]} 31. f3 {[%clk 0:01:59]}  exf3 {[%clk 0:00:38]} 32. gxf3 {[%clk 0:01:59]}  Ke7 {[%clk 0:00:34]} 33. Be1 {[%clk 0:01:57]}  Kf7 {[%clk 0:00:26]} 34. Bh4 {[%clk 0:01:56]}  Ne8 {[%clk 0:00:16]} 35. Rd8 {[%clk 0:01:45]} 1-0


[Site "https://www.chess.com"]

[Event "Titled Tuesday Blitz August 1 Early 2023"]
[White "Talibov, Shiroghlan"]
[Black "Onufrienko, Vladislav"]
[WhiteFideId "13429078"]
[BlackFideId "13804332"]
[WhiteElo "2839"]
[BlackElo "2554"]
[Result "1-0"]
[Round "2"]
[TimeControl "180+1"]
[Date "2023.08.01"]
[WhiteClock "0:00:17"]
[BlackClock "0:00:01"]
[Board "44"]

1. e4 {[%clk 0:02:58]}  Nf6 {[%clk 0:03:00]} 2. e5 {[%clk 0:02:47]}  Nd5 {[%clk 0:03:00]} 3. Nf3 {[%clk 0:02:43]}  d6 {[%clk 0:03:01]} 4. Bc4 {[%clk 0:02:39]}  Nb6 {[%clk 0:03:00]} 5. Bb3 {[%clk 0:02:39]}  c5 {[%clk 0:03:00]} 6. d3 {[%clk 0:02:36]}  d5 {[%clk 0:03:00]} 7. c3 {[%clk 0:02:35]}  Bg4 {[%clk 0:03:00]} 8. Bf4 {[%clk 0:02:35]}  Nc6 {[%clk 0:02:59]} 9. Nbd2 {[%clk 0:02:34]}  e6 {[%clk 0:02:59]} 10. h3 {[%clk 0:02:34]}  Bh5 {[%clk 0:02:59]} 11. O-O {[%clk 0:02:32]}  Be7 {[%clk 0:02:59]} 12. Re1 {[%clk 0:02:31]}  O-O {[%clk 0:02:59]} 13. Bc2 {[%clk 0:02:30]}  Nd7 {[%clk 0:02:58]} 14. Qc1 {[%clk 0:02:25]}  Rc8 {[%clk 0:02:57]} 15. Nh2 {[%clk 0:02:23]}  Bg5 {[%clk 0:02:42]} 16. Bg3 {[%clk 0:02:21]}  f6 {[%clk 0:02:24]} 17. f4 {[%clk 0:02:02]}  Bh6 {[%clk 0:02:18]} 18. exf6 {[%clk 0:02:02]}  Qxf6 {[%clk 0:02:18]} 19. Rf1 {[%clk 0:02:01]}  Ne7 {[%clk 0:01:41]} 20. Ng4 {[%clk 0:01:59]}  Qg6 {[%clk 0:01:23]} 21. Nxh6+ {[%clk 0:01:44]}  Qxh6 {[%clk 0:01:24]} 22. Nf3 {[%clk 0:01:44]}  Nf5 {[%clk 0:01:21]} 23. Bh2 {[%clk 0:01:42]}  d4 {[%clk 0:01:10]} 24. g4 {[%clk 0:01:36]}  Qg6 {[%clk 0:00:41]} 25. Kh1 {[%clk 0:01:22]}  Bxg4 {[%clk 0:00:41]} 26. hxg4 {[%clk 0:01:22]}  Qxg4 {[%clk 0:00:42]} 27. Rf2 {[%clk 0:01:13]}  Rf6 {[%clk 0:00:28]} 28. Qg1 {[%clk 0:01:10]}  Qh5 {[%clk 0:00:20]} 29. Bd1 {[%clk 0:01:01]}  Rh6 {[%clk 0:00:14]} 30. Ng5 {[%clk 0:00:55]}  Qh4 {[%clk 0:00:08]} 31. Rg2 {[%clk 0:00:51]}  Ne3 {[%clk 0:00:08]} 32. Bg4 {[%clk 0:00:39]}  Nf8 {[%clk 0:00:03]} 33. Rg3 {[%clk 0:00:29]}  Ng6 {[%clk 0:00:02]} 34. Bxe6+ {[%clk 0:00:27]}  Kf8 {[%clk 0:00:03]} 35. Rh3 {[%clk 0:00:23]}  Qxf4 {[%clk 0:00:01]} 36. Bxf4 {[%clk 0:00:22]}  Rxh3+ {[%clk 0:00:01]} 37. Bxh3 {[%clk 0:00:19]}  Nxf4 {[%clk 0:00:02]} 38. Nxh7+ {[%clk 0:00:19]}  Kg8 {[%clk 0:00:01]} 39. Bxc8 {[%clk 0:00:17]} 1-0


[Site "https://www.chess.com"]

[Event "Titled Tuesday Blitz August 1 Early 2023"]
[White "Kovalenko, Igor"]
[Black "Remolar Gallen, Jose"]
[WhiteFideId "14117908"]
[BlackFideId "2215187"]
[WhiteElo "2829"]
[BlackElo "2548"]
[Result "1-0"]
[Round "2"]
[TimeControl "180+1"]
[Date "2023.08.01"]
[WhiteClock "0:00:18"]
[BlackClock "0:00:01"]
[Board "46"]

1. c4 {[%clk 0:02:46]}  Nf6 {[%clk 0:02:59]} 2. Nc3 {[%clk 0:02:43]}  g6 {[%clk 0:02:59]} 3. g3 {[%clk 0:02:43]}  Bg7 {[%clk 0:02:59]} 4. Bg2 {[%clk 0:02:43]}  O-O {[%clk 0:03:00]} 5. Nf3 {[%clk 0:02:44]}  d6 {[%clk 0:02:59]} 6. O-O {[%clk 0:02:44]}  Nc6 {[%clk 0:02:59]} 7. d4 {[%clk 0:02:44]}  a6 {[%clk 0:02:59]} 8. e4 {[%clk 0:02:41]}  Bg4 {[%clk 0:02:57]} 9. Be3 {[%clk 0:02:40]}  Nd7 {[%clk 0:02:50]} 10. Qd2 {[%clk 0:02:34]}  e5 {[%clk 0:02:42]} 11. d5 {[%clk 0:02:34]}  Bxf3 {[%clk 0:02:36]} 12. Bxf3 {[%clk 0:02:35]}  Nd4 {[%clk 0:02:36]} 13. Bg2 {[%clk 0:02:30]}  c5 {[%clk 0:02:25]} 14. dxc6 {[%clk 0:01:47]}  bxc6 {[%clk 0:02:26]} 15. b4 {[%clk 0:01:48]}  a5 {[%clk 0:01:48]} 16. b5 {[%clk 0:01:47]}  Nb6 {[%clk 0:01:47]} 17. Qd3 {[%clk 0:01:47]}  Rc8 {[%clk 0:01:46]} 18. Rfc1 {[%clk 0:01:40]}  Qd7 {[%clk 0:01:17]} 19. Rab1 {[%clk 0:01:38]}  Qe6 {[%clk 0:01:12]} 20. bxc6 {[%clk 0:01:33]}  Rxc6 {[%clk 0:01:13]} 21. Nd5 {[%clk 0:01:32]}  Nd7 {[%clk 0:01:09]} 22. Rb2 {[%clk 0:01:25]}  Rfc8 {[%clk 0:01:05]} 23. h4 {[%clk 0:01:18]}  Nc5 {[%clk 0:00:58]} 24. Qa3 {[%clk 0:01:14]}  a4 {[%clk 0:00:47]} 25. Kh2 {[%clk 0:01:13]}  h6 {[%clk 0:00:43]} 26. Rcb1 {[%clk 0:01:08]}  Kh7 {[%clk 0:00:41]} 27. Bxd4 {[%clk 0:01:00]}  exd4 {[%clk 0:00:41]} 28. Bh3 {[%clk 0:01:01]}  Qxe4 {[%clk 0:00:34]} 29. Bxc8 {[%clk 0:01:00]}  Rxc8 {[%clk 0:00:35]} 30. Rd1 {[%clk 0:00:53]}  d3 {[%clk 0:00:33]} 31. Rbd2 {[%clk 0:00:53]}  Qxc4 {[%clk 0:00:33]} 32. Nb6 {[%clk 0:00:51]}  Qa6 {[%clk 0:00:19]} 33. Nxc8 {[%clk 0:00:51]}  Qxc8 {[%clk 0:00:20]} 34. Rxd3 {[%clk 0:00:51]}  Nxd3 {[%clk 0:00:20]} 35. Rxd3 {[%clk 0:00:51]}  Qc2 {[%clk 0:00:18]} 36. Kg2 {[%clk 0:00:51]}  Be5 {[%clk 0:00:17]} 37. Rf3 {[%clk 0:00:49]}  Kg7 {[%clk 0:00:18]} 38. Rd3 {[%clk 0:00:37]}  h5 {[%clk 0:00:13]} 39. Re3 {[%clk 0:00:34]}  Bd4 {[%clk 0:00:11]} 40. Qd3 {[%clk 0:00:28]}  Qc6+ {[%clk 0:00:07]} 41. Rf3 {[%clk 0:00:28]}  Be5 {[%clk 0:00:07]} 42. Qe3 {[%clk 0:00:24]}  Qd5 {[%clk 0:00:07]} 43. Qe2 {[%clk 0:00:22]}  Qc5 {[%clk 0:00:03]} 44. Qe4 {[%clk 0:00:20]}  Qc1 {[%clk 0:00:02]} 45. Qb7 {[%clk 0:00:20]}  Qc4 {[%clk 0:00:01]} 46. a3 {[%clk 0:00:18]}  Qe6 {[%clk 0:00:02]} 47. Qa7 {[%clk 0:00:17]}  Qc4 {[%clk 0:00:02]} 48. Qb7 {[%clk 0:00:17]}  Bf6 {[%clk 0:00:02]} 49. Qd7 {[%clk 0:00:16]}  Be5 {[%clk 0:00:03]} 50. Qa7 {[%clk 0:00:15]}  Qd5 {[%clk 0:00:03]} 51. Qxa4 {[%clk 0:00:14]}  f6 {[%clk 0:00:03]} 52. Qb3 {[%clk 0:00:14]}  Qd4 {[%clk 0:00:03]} 53. a4 {[%clk 0:00:15]}  g5 {[%clk 0:00:03]} 54. hxg5 {[%clk 0:00:15]}  fxg5 {[%clk 0:00:04]} 55. Qb7+ {[%clk 0:00:15]}  Kg6 {[%clk 0:00:04]} 56. Qf7+ {[%clk 0:00:15]}  Kh6 {[%clk 0:00:05]} 57. Qe6+ {[%clk 0:00:15]}  Kh7 {[%clk 0:00:04]} 58. Rf7+ {[%clk 0:00:16]}  Bg7 {[%clk 0:00:05]} 59. Qf5+ {[%clk 0:00:16]}  Kh6 {[%clk 0:00:05]} 60. a5 {[%clk 0:00:16]}  d5 {[%clk 0:00:05]} 61. Rd7 {[%clk 0:00:15]}  Qc5 {[%clk 0:00:04]} 62. Rxd5 {[%clk 0:00:15]}  Qc6 {[%clk 0:00:04]} 63. a6 {[%clk 0:00:15]}  h4 {[%clk 0:00:05]} 64. Qxg5+ {[%clk 0:00:16]}  Kh7 {[%clk 0:00:05]} 65. Qxh4+ {[%clk 0:00:17]}  Kg8 {[%clk 0:00:06]} 66. Qe4 {[%clk 0:00:17]}  Qxa6 {[%clk 0:00:06]} 67. Qe8+ {[%clk 0:00:17]}  Kh7 {[%clk 0:00:06]} 68. Rh5+ {[%clk 0:00:17]}  Bh6 {[%clk 0:00:06]} 69. Qe4+ {[%clk 0:00:18]}  Kg7 {[%clk 0:00:06]} 70. Re5 {[%clk 0:00:18]}  Qg6 {[%clk 0:00:01]} 71. Re7+ {[%clk 0:00:18]} 1-0


[Site "https://www.chess.com"]

[Event "Titled Tuesday Blitz August 1 Early 2023"]
[White "Womacka, Mathias"]
[Black "Sychev, Klementy"]
[WhiteFideId "4611390"]
[BlackFideId "4114060"]
[WhiteElo "2546"]
[BlackElo "2820"]
[Result "0-1"]
[Round "2"]
[TimeControl "180+1"]
[Date "2023.08.01"]
[WhiteClock "0:00:12"]
[BlackClock "0:00:06"]
[Board "48"]

1. e4 {[%clk 0:03:00]}  e5 {[%clk 0:03:00]} 2. Nf3 {[%clk 0:03:00]}  Nc6 {[%clk 0:02:59]} 3. Bb5 {[%clk 0:03:01]}  a6 {[%clk 0:02:59]} 4. Bxc6 {[%clk 0:03:01]}  dxc6 {[%clk 0:02:59]} 5. O-O {[%clk 0:03:02]}  Bg4 {[%clk 0:02:59]} 6. h3 {[%clk 0:03:01]}  Bh5 {[%clk 0:02:59]} 7. g4 {[%clk 0:03:00]}  Bg6 {[%clk 0:03:00]} 8. Nxe5 {[%clk 0:03:00]}  Bd6 {[%clk 0:03:00]} 9. Nxg6 {[%clk 0:02:55]}  hxg6 {[%clk 0:03:01]} 10. Qf3 {[%clk 0:02:54]}  Qd7 {[%clk 0:03:01]} 11. d4 {[%clk 0:02:51]}  f5 {[%clk 0:02:50]} 12. e5 {[%clk 0:02:31]}  Be7 {[%clk 0:02:50]} 13. Be3 {[%clk 0:02:30]}  O-O-O {[%clk 0:02:45]} 14. Kg2 {[%clk 0:02:30]}  Rh4 {[%clk 0:02:39]} 15. gxf5 {[%clk 0:02:08]}  gxf5 {[%clk 0:02:39]} 16. Nc3 {[%clk 0:02:08]}  f4 {[%clk 0:02:20]} 17. Bd2 {[%clk 0:01:53]}  Qxd4 {[%clk 0:02:14]} 18. Rad1 {[%clk 0:01:53]}  Qxe5 {[%clk 0:02:12]} 19. Bc1 {[%clk 0:01:38]}  Bd6 {[%clk 0:02:01]} 20. Ne4 {[%clk 0:01:35]}  Nf6 {[%clk 0:01:59]} 21. Rfe1 {[%clk 0:01:28]}  Nxe4 {[%clk 0:01:48]} 22. Rxe4 {[%clk 0:01:28]}  Qg5+ {[%clk 0:01:46]} 23. Kf1 {[%clk 0:01:27]}  Rdh8 {[%clk 0:01:42]} 24. Rxd6 {[%clk 0:01:10]}  cxd6 {[%clk 0:01:39]} 25. Bxf4 {[%clk 0:01:10]}  Qf5 {[%clk 0:01:25]} 26. Qe3 {[%clk 0:00:59]}  Qxh3+ {[%clk 0:00:47]} 27. Qxh3+ {[%clk 0:00:57]}  Rxh3 {[%clk 0:00:48]} 28. Bxd6 {[%clk 0:00:57]}  Rh1+ {[%clk 0:00:42]} 29. Kg2 {[%clk 0:00:55]}  R1h6 {[%clk 0:00:24]} 30. Bg3 {[%clk 0:00:50]}  g5 {[%clk 0:00:20]} 31. Kf3 {[%clk 0:00:41]}  Kd7 {[%clk 0:00:15]} 32. Kg4 {[%clk 0:00:41]}  Rg6 {[%clk 0:00:15]} 33. a4 {[%clk 0:00:33]}  b5 {[%clk 0:00:14]} 34. axb5 {[%clk 0:00:29]}  axb5 {[%clk 0:00:14]} 35. c4 {[%clk 0:00:23]}  bxc4 {[%clk 0:00:08]} 36. Rxc4 {[%clk 0:00:24]}  Re8 {[%clk 0:00:07]} 37. Rd4+ {[%clk 0:00:19]}  Kc8 {[%clk 0:00:07]} 38. Kf5 {[%clk 0:00:16]}  Rg7 {[%clk 0:00:06]} 39. Bf4 {[%clk 0:00:12]}  gxf4 {[%clk 0:00:06]} 0-1


[Site "https://www.chess.com"]

[Event "Titled Tuesday Blitz August 1 Early 2023"]
[White "Ozen, Bahadir"]
[Black "Postlmayer, Jakob"]
[WhiteFideId "6337058"]
[BlackFideId "1643622"]
[WhiteElo "2819"]
[BlackElo "2546"]
[Result "1/2-1/2"]
[Round "2"]
[TimeControl "180+1"]
[Date "2023.08.01"]
[WhiteClock "0:02:06"]
[BlackClock "0:02:12"]
[Board "49"]

1. g3 {[%clk 0:03:00]}  d5 {[%clk 0:02:56]} 2. Nf3 {[%clk 0:03:00]}  Nf6 {[%clk 0:02:56]} 3. Bg2 {[%clk 0:03:00]}  e6 {[%clk 0:02:55]} 4. O-O {[%clk 0:03:00]}  Be7 {[%clk 0:02:56]} 5. b3 {[%clk 0:02:59]}  O-O {[%clk 0:02:56]} 6. Bb2 {[%clk 0:03:00]}  b6 {[%clk 0:02:56]} 7. c4 {[%clk 0:03:00]}  Bb7 {[%clk 0:02:56]} 8. cxd5 {[%clk 0:02:58]}  Nxd5 {[%clk 0:02:55]} 9. d4 {[%clk 0:02:57]}  Nd7 {[%clk 0:02:53]} 10. Nc3 {[%clk 0:02:57]}  Nxc3 {[%clk 0:02:52]} 11. Bxc3 {[%clk 0:02:58]}  c5 {[%clk 0:02:50]} 12. Rc1 {[%clk 0:02:51]}  Rc8 {[%clk 0:02:47]} 13. Ba1 {[%clk 0:02:34]}  Bf6 {[%clk 0:02:39]} 14. Qd2 {[%clk 0:02:21]}  Qe7 {[%clk 0:02:30]} 15. Rfd1 {[%clk 0:02:18]}  Rfd8 {[%clk 0:02:24]} 16. Qe1 {[%clk 0:02:17]}  Bxf3 {[%clk 0:02:14]} 17. Bxf3 {[%clk 0:02:17]}  cxd4 {[%clk 0:02:14]} 18. Rxc8 {[%clk 0:02:15]}  Rxc8 {[%clk 0:02:15]} 19. Bxd4 {[%clk 0:02:15]}  Bxd4 {[%clk 0:02:15]} 20. Rxd4 {[%clk 0:02:16]}  Nf6 {[%clk 0:02:12]} 21. Qd2 {[%clk 0:02:06]} 1/2-1/2


[Site "https://www.chess.com"]

[Event "Titled Tuesday Blitz August 1 Early 2023"]
[White "Ohanyan, Emin"]
[Black "Al-Tarboush, Ward"]
[WhiteFideId "13312022"]
[BlackFideId "7601450"]
[WhiteElo "2805"]
[BlackElo "2544"]
[Result "1-0"]
[Round "2"]
[TimeControl "180+1"]
[Date "2023.08.01"]
[WhiteClock "0:02:23"]
[BlackClock "0:02:37"]
[Board "51"]

1. e4 {[%clk 0:03:00]}  c5 {[%clk 0:02:59]} 2. Nf3 {[%clk 0:03:01]}  e6 {[%clk 0:03:00]} 3. d4 {[%clk 0:03:01]}  cxd4 {[%clk 0:03:00]} 4. Nxd4 {[%clk 0:03:02]}  a6 {[%clk 0:03:00]} 5. Bd3 {[%clk 0:03:02]}  Ne7 {[%clk 0:02:58]} 6. O-O {[%clk 0:02:58]}  Nbc6 {[%clk 0:02:58]} 7. Nxc6 {[%clk 0:02:45]}  Nxc6 {[%clk 0:02:58]} 8. f4 {[%clk 0:02:41]}  Bc5+ {[%clk 0:02:57]} 9. Kh1 {[%clk 0:02:41]}  O-O {[%clk 0:02:57]} 10. Nd2 {[%clk 0:02:41]}  b5 {[%clk 0:02:57]} 11. e5 {[%clk 0:02:29]}  f5 {[%clk 0:02:57]} 12. exf6 {[%clk 0:02:29]}  Qxf6 {[%clk 0:02:54]} 13. Qh5 {[%clk 0:02:24]}  Be3 {[%clk 0:02:38]} 14. Bxh7+ {[%clk 0:02:22]}  Kh8 {[%clk 0:02:37]} 15. Bg6+ {[%clk 0:02:22]}  Kg8 {[%clk 0:02:37]} 16. Qh7# {[%clk 0:02:23]} 1-0


[Site "https://www.chess.com"]

[Event "Titled Tuesday Blitz August 1 Early 2023"]
[White "Dinosaurio_1975"]
[Black "Nazari, Arad"]
[BlackFideId "12577324"]
[WhiteElo "2543"]
[BlackElo "2803"]
[Result "1/2-1/2"]
[Round "2"]
[TimeControl "180+1"]
[Date "2023.08.01"]
[WhiteClock "0:00:04"]
[BlackClock "0:00:06"]
[Board "52"]

1. e4 {[%clk 0:03:00]}  c5 {[%clk 0:02:58]} 2. Nf3 {[%clk 0:03:00]}  d6 {[%clk 0:02:56]} 3. Bb5+ {[%clk 0:03:00]}  Nd7 {[%clk 0:02:56]} 4. c3 {[%clk 0:03:00]}  Nf6 {[%clk 0:02:56]} 5. Bd3 {[%clk 0:03:00]}  g6 {[%clk 0:02:54]} 6. Bc2 {[%clk 0:02:59]}  Bg7 {[%clk 0:02:54]} 7. d4 {[%clk 0:02:59]}  O-O {[%clk 0:02:52]} 8. O-O {[%clk 0:02:58]}  a6 {[%clk 0:02:49]} 9. Re1 {[%clk 0:02:44]}  e5 {[%clk 0:02:49]} 10. d5 {[%clk 0:02:43]}  b5 {[%clk 0:02:49]} 11. b3 {[%clk 0:02:35]}  Nh5 {[%clk 0:02:38]} 12. c4 {[%clk 0:02:16]}  f5 {[%clk 0:02:20]} 13. Ng5 {[%clk 0:02:06]}  Nf4 {[%clk 0:01:57]} 14. Bxf4 {[%clk 0:01:25]}  exf4 {[%clk 0:01:57]} 15. Ne6 {[%clk 0:01:25]}  Qf6 {[%clk 0:01:56]} 16. Nxf8 {[%clk 0:01:24]}  Qxf8 {[%clk 0:01:05]} 17. Nd2 {[%clk 0:01:22]}  Bxa1 {[%clk 0:01:05]} 18. Qxa1 {[%clk 0:01:23]}  Ne5 {[%clk 0:01:04]} 19. exf5 {[%clk 0:01:16]}  Bxf5 {[%clk 0:01:05]} 20. Qb1 {[%clk 0:00:35]}  Bxc2 {[%clk 0:00:53]} 21. Qxc2 {[%clk 0:00:36]}  Re8 {[%clk 0:00:53]} 22. f3 {[%clk 0:00:21]}  Qg7 {[%clk 0:00:29]} 23. Re4 {[%clk 0:00:20]}  g5 {[%clk 0:00:28]} 24. Qb1 {[%clk 0:00:12]}  Rb8 {[%clk 0:00:27]} 25. Qe1 {[%clk 0:00:09]}  h6 {[%clk 0:00:19]} 26. h4 {[%clk 0:00:09]}  Qf6 {[%clk 0:00:16]} 27. hxg5 {[%clk 0:00:09]}  hxg5 {[%clk 0:00:17]} 28. Re2 {[%clk 0:00:07]}  Re8 {[%clk 0:00:16]} 29. Ne4 {[%clk 0:00:07]}  Qg6 {[%clk 0:00:16]} 30. Qf2 {[%clk 0:00:04]}  bxc4 {[%clk 0:00:15]} 31. bxc4 {[%clk 0:00:03]}  Kg7 {[%clk 0:00:12]} 32. Qe1 {[%clk 0:00:02]}  g4 {[%clk 0:00:09]} 33. Nxc5 {[%clk 0:00:01]}  gxf3 {[%clk 0:00:08]} 34. Rf2 {[%clk 0:00:01]}  Rh8 {[%clk 0:00:03]} 35. Ne6+ {[%clk 0:00:01]}  Kf6 {[%clk 0:00:04]} 36. Nxf4 {[%clk 0:00:01]}  Qh6 {[%clk 0:00:04]} 37. Nh3 {[%clk 0:00:01]}  Ke7 {[%clk 0:00:04]} 38. Rxf3 {[%clk 0:00:01]}  Kd7 {[%clk 0:00:05]} 39. Re3 {[%clk 0:00:02]}  Rg8 {[%clk 0:00:05]} 40. Rxe5 {[%clk 0:00:02]}  dxe5 {[%clk 0:00:04]} 41. Qxe5 {[%clk 0:00:02]}  Qxh3 {[%clk 0:00:03]} 42. Qe2 {[%clk 0:00:02]}  Qg3 {[%clk 0:00:03]} 43. Qb2 {[%clk 0:00:02]}  Qe1+ {[%clk 0:00:02]} 44. Kh2 {[%clk 0:00:03]}  Rh8+ {[%clk 0:00:03]} 45. Qxh8 {[%clk 0:00:03]}  Qe4 {[%clk 0:00:02]} 46. Qg7+ {[%clk 0:00:02]}  Kd6 {[%clk 0:00:02]} 47. Qf6+ {[%clk 0:00:02]}  Kc5 {[%clk 0:00:03]} 48. Qc6+ {[%clk 0:00:03]}  Kb4 {[%clk 0:00:03]} 49. a3+ {[%clk 0:00:01]}  Kc3 {[%clk 0:00:03]} 50. Qc5 {[%clk 0:00:02]}  Qh4+ {[%clk 0:00:03]} 51. Kg1 {[%clk 0:00:02]}  Qe1+ {[%clk 0:00:04]} 52. Kh2 {[%clk 0:00:03]}  Qh4+ {[%clk 0:00:04]} 53. Kg1 {[%clk 0:00:03]}  Qe1+ {[%clk 0:00:05]} 54. Kh2 {[%clk 0:00:04]}  Qh4+ {[%clk 0:00:06]} 1/2-1/2


[Site "https://www.chess.com"]